[Event "15th Chennai GM Open 2025"]
[Site "Chennai"]
[Date "2025.01.05"]
[Round "5.15"]
[White "Mayukh Majumder"]
[Black "Mohamed Anees M"]
[Result "1/2-1/2"]
[ECO "B31"]
[WhiteElo "2013"]
[BlackElo "2334"]
[Annotator "TA"]
[PlyCount "91"]
[EventDate "2025.01.02"]
[EventType "swiss"]
[EventCountry "IND"]
[SourceTitle "playchess.com"]
[Source "ChessBase"]
[SourceQuality "1"]
[TimeControl "5400+30"]

{[%evp 16,91,0,-36,0,-100,-38,-37,-43,-46,-54,-37,-39,-48,-33,-45,-12,-45,-51,-35,-54,-42,-15,-46,-20,-23,-18,-22,-22,-22,-14,-26,-29,-22,-8,-13,0,-30,-35,-100,-15,-31,-20,-98,-104,-102,-85,-295,-113,-58,-10,-12,-6,-35,64,64,64,64,64,64,64,64,86,45,45,45,45,45,45,12,45,12,12,12,12,12,12,8]} 1. e4 {[%emt 0:00:21]} c5 {[%emt 0:00:31]} 2. Nf3 {[%emt 0:00:08]} Nc6 {[%emt 0:00:06]} 3. Bb5 {[%emt 0:00:12]} g6 {[%emt 0:00:05]} 4. O-O {[%emt 0:00:17]} Bg7 {[%emt 0:00:05]} 5. c3 {[%emt 0:01:19]} e5 {[%emt 0:00:07]} 6. Na3 {[%emt 0:06:56]} Nge7 {[%emt 0:00:54]} 7. d4 {[%emt 0:03:27]} cxd4 {[%emt 0:04:38]} 8. cxd4 {[%emt 0:00:15]} exd4 {[%emt 0:00:11]} 9. Bf4 {[%emt 0:00:15]} a6 {[%emt 0:10:11]} 10. Bc4 {[%emt 0:09:49] [#]} (10. Bd6 $11 {keeps the balance.}) 10... d6 {[%emt 0:05:18]} ({Better is} 10... d5 $1 $17 {[%cal Rd5c4]} 11. exd5 Nxd5) 11. Nc2 {[%emt 0:06:40]} O-O {[%emt 0:05:31] Black is slightly better.} 12. Ncxd4 {[%emt 0:03:46]} Nxd4 {[%emt 0:01:17]} 13. Nxd4 {[%emt 0:01:01]} d5 {[%emt 0:00:31]} 14. exd5 {[%emt 0:03:29]} Nxd5 {[%emt 0:00:06]} 15. Be3 {[%emt 0:02:23]} Kh8 {[%emt 0:16:44]} 16. Nc2 {[%emt 0:09:05]} Nxe3 {[%emt 0:00:43]} 17. Qxd8 {[%emt 0:00:08]} Rxd8 {[%emt 0:00:03]} 18. Nxe3 {[%emt 0:00:07]} b5 {[%emt 0:15:48]} 19. Bxf7 {[%emt 0:02:52]} Bxb2 {[%emt 0:00:29] This pair of bishops is nice.} 20. Rad1 {[%emt 0:00:16]} Bb7 {[%emt 0:00:29]} 21. Bd5 {[%emt 0:00:09]} Bxd5 {[%emt 0:02:42]} 22. Nxd5 {[%emt 0:02:49]} Rac8 {[%emt 0:02:44]} 23. g3 {[%emt 0:02:00]} a5 {[%emt 0:05:13]} 24. Kg2 {[%emt 0:10:55]} b4 {[%emt 0:05:21]} 25. Rfe1 {[%emt 0:03:02]} Rd6 {[%emt 0:06:18]} 26. Re2 {[%emt 0:04:45]} Bg7 {[%emt 0:02:27]} 27. Rde1 {[%emt 0:00:44]} Rf8 {[%emt 0:00:30]} (27... h6 $17 28. Ne3 h5) 28. Nf4 {[%emt 0:00:55]} Bc3 {[%emt 0:02:29]} 29. Rc1 {[%emt 0:03:18]} (29. Re6 $1 $11 {remains equal.}) 29... a4 $17 {[%emt 0:03:02]} 30. a3 {[%emt 0:01:18]} Rd2 {[%emt 0:02:10] aiming for ...Rxe2.} 31. Re4 {[%emt 0:08:56] [#]} (31. axb4 $17 {is a better defense.} Rxe2 (31... Bxb4 32. Re4 $11) 32. Nxe2 Bxb4 33. Rc2) 31... Bb2 $2 {[%emt 0:04:45]} (31... g5 $1 $19 {[%cal Rg5f4]} 32. Nh3 (32. axb4 $2 {loses.} Bb2 $19) 32... Bd4 (32... Bb2 33. Rc7 $17)) 32. Rc7 {[%emt 0:00:14]} bxa3 {[%emt 0:00:50]} (32... b3 $15 33. Rxa4 Be5) 33. Rxa4 $11 {[%emt 0:00:21]} Be5 {[%emt 0:01:38]} 34. Rca7 {[%emt 0:02:25]} Bd4 {[%emt 0:00:09] [#]} (34... g5 $15 35. R7a5 gxf4 (35... Bxf4 36. gxf4 a2 37. Rxg5 $11) 36. Rxe5 fxg3 37. hxg3 Rfxf2+ 38. Kh3 Kg7) 35. Rxd4 $1 $14 {[%emt 0:00:10]} Rxd4 {[%emt 0:01:07][%mdl 4096] Endgame. KRR-KRN} 36. Ne6 $1 {[%emt 0:00:11]} Rdd8 {[%emt 0:00:03]} 37. Nxf8 {[%emt 0:00:06]} Rxf8 {[%emt 0:00:03]} 38. Rxa3 {[%emt 0:00:06] KR-KR. White is more active.} Rf7 {[%emt 0:01:14]} 39. f4 {[%emt 0:00:58]} Kg7 {[%emt 0:00:12]} 40. Ra5 {[%emt 0:00:05]} h5 {[%emt 0:01:31]} 41. Kh3 {[%emt 0:00:20]} Rb7 {[%emt 0:00:32]} 42. f5 {[%emt 0:00:25]} gxf5 {[%emt 0:00:39]} 43. Rxf5 {[%emt 0:00:08]} Kg6 {[%emt 0:00:02] The position is equal.} 44. Rf2 {[%emt 0:00:32]} Kg5 {[%emt 0:00:27]} 45. Rc2 {[%emt 0:00:11]} Rb5 {[%emt 0:00:05]} 46. Kg2 {[%emt 0:00:10] Weighted Error Value: White=0.26 (precise) /Black=0.25 (precise) .  Loses game:     	White=1     	---        Missed win:     	---       	Black=1      Mistake:       	White=3     	Black=4      Inaccurate:     	White=7     	Black=4      OK:         	White=9     	Black=15     Best:        	White=3     	Black=2      Strong:       	White=1     	---        Brilliant:      	White=1     	---} 1/2-1/2

[Event "15th Chennai GM Open 2025"]
[Site "Chennai"]
[Date "2025.01.05"]
[Round "6.1"]
[White "Sammed Jaykumar, Shete"]
[Black "Siddharth, Jagadeesh"]
[Result "1/2-1/2"]
[ECO "A47"]
[WhiteElo "2379"]
[BlackElo "2515"]
[Annotator "TA"]
[PlyCount "61"]
[EventDate "2025.01.02"]
[EventType "swiss"]
[EventCountry "IND"]
[SourceTitle "playchess.com"]
[Source "ChessBase"]
[SourceQuality "1"]
[TimeControl "5400+30"]

{[%evp 9,61,20,14,-1,0,-5,0,-10,-2,-3,0,0,2,-8,-8,-8,-5,-10,0,-16,-12,-9,0,0,0,0,0,0,0,0,0,0,0,0,0,0,0,0,0,0,0,0,0,0,0,0,0,0,0,0,0,0,0,0]} 1. d4 {[%emt 0:00:05]} Nf6 {[%emt 0:00:07]} 2. Nf3 {[%emt 0:00:13]} b6 {[%emt 0:00:06]} 3. Bg5 {[%emt 0:00:35]} Bb7 {[%emt 0:00:07]} 4. Nbd2 {[%emt 0:00:18]} d6 {[%emt 0:00:07]} 5. Bxf6 {[%emt 0:01:37]} exf6 {[%emt 0:00:57]} 6. g3 {[%emt 0:04:57]} g6 {[%emt 0:03:08]} 7. Bg2 {[%emt 0:00:40]} Bg7 {[%emt 0:00:07]} 8. O-O {[%emt 0:02:09]} O-O {[%emt 0:00:06]} 9. e4 {[%emt 0:04:49]} c5 {[%emt 0:16:38]} 10. c3 {[%emt 0:03:45]} Nc6 {[%emt 0:00:46]} 11. Nc4 {[%emt 0:04:38]} cxd4 {[%emt 0:06:39]} 12. Nxd4 {[%emt 0:01:45]} Nxd4 {[%emt 0:00:54]} 13. Qxd4 {[%emt 0:19:19]} f5 {[%emt 0:18:40]} 14. Qd1 {[%emt 0:05:54]} Qc7 {[%emt 0:07:32]} 15. Nd2 {[%emt 0:01:51][%cal Bc4d2,Bd2e4,Be4g5][%mdl 32]} fxe4 {[%emt 0:03:43]} 16. Nxe4 {[%emt 0:00:07]} d5 {[%emt 0:00:11]} 17. Ng5 {[%emt 0:00:45]} d4 {[%emt 0:06:35]} 18. Bxb7 {[%emt 0:00:13]} Qxb7 {[%emt 0:00:04]} 19. cxd4 {[%emt 0:00:05]} Rad8 {[%emt 0:00:03]} 20. Nf3 {[%emt 0:00:08]} Qd5 {[%emt 0:00:09]} 21. Qb3 {[%emt 0:00:17]} Bxd4 {[%emt 0:00:09]} 22. Nxd4 {[%emt 0:00:06]} Qxd4 {[%emt 0:00:02]} 23. Rad1 {[%emt 0:00:06]} Qf6 {[%emt 0:00:05]} 24. Rfe1 {[%emt 0:00:08]} Rxd1 {[%emt 0:00:04]} 25. Rxd1 {[%emt 0:00:05]} Rd8 {[%emt 0:00:03]} 26. Rxd8+ {[%emt 0:00:07]} Qxd8 $11 {[%emt 0:00:03] KQ-KQ} 27. Kg2 {[%emt 0:00:06]} Qd4 {[%emt 0:00:04]} 28. h4 {[%emt 0:00:05]} Qe4+ {[%emt 0:00:04]} 29. Kg1 {[%emt 0:00:04]} Qe1+ {[%emt 0:00:03]} 30. Kg2 {[%emt 0:00:04]} Qe4+ {[%emt 0:00:02]} 31. Kg1 {[%emt 0:00:04]} 1/2-1/2

[Event "15th Chennai GM Open 2025"]
[Site "Chennai"]
[Date "2025.01.05"]
[Round "6.2"]
[White "Iniyan, Pa"]
[Black "Vaz, Ethan"]
[Result "1/2-1/2"]
[ECO "E97"]
[WhiteElo "2508"]
[BlackElo "2412"]
[Annotator "TA"]
[PlyCount "96"]
[EventDate "2025.01.02"]
[EventType "swiss"]
[EventCountry "IND"]
[SourceTitle "playchess.com"]
[Source "ChessBase"]
[SourceQuality "1"]
[TimeControl "5400+30"]

{[%evp 20,96,50,31,32,23,40,33,33,43,39,35,58,51,64,41,51,60,56,34,46,46,44,40,46,43,45,45,38,37,35,36,22,33,29,27,43,43,44,0,0,8,39,0,0,0,0,0,0,0,0,0,0,0,0,0,0,0,0,0,0,0,0,0,0,0,0,0,0,0,0,0,0,0,0,0,0,0,0]} 1. d4 {[%emt 0:03:02]} Nf6 {[%emt 0:00:17]} 2. c4 {[%emt 0:00:08]} g6 {[%emt 0:00:14]} 3. Nc3 {[%emt 0:00:13]} Bg7 {[%emt 0:00:06]} 4. e4 {[%emt 0:00:06]} d6 {[%emt 0:00:05]} 5. Nf3 {[%emt 0:00:06]} O-O {[%emt 0:00:25]} 6. Be2 {[%emt 0:00:07]} e5 {[%emt 0:01:04]} 7. O-O {[%emt 0:00:09]} Nc6 {[%emt 0:00:29]} 8. d5 {[%emt 0:00:07]} Ne7 {[%emt 0:00:04]} 9. b4 {[%emt 0:00:05]} a5 {[%emt 0:01:15]} 10. bxa5 {[%emt 0:00:07]} Rxa5 {[%emt 0:00:03]} 11. a4 {[%emt 0:00:08]} Ne8 {[%emt 0:01:39]} 12. Bd2 {[%emt 0:06:40]} Ra8 {[%emt 0:28:00]} 13. a5 {[%emt 0:01:49]} h6 {[%emt 0:07:15]} 14. Ne1 {[%emt 0:20:16]} f5 {[%emt 0:05:10]} 15. f3 {[%emt 0:00:07][%cal Bf2f3,Bf3e4,Be4d5][%mdl 32]} Nf6 {[%emt 0:03:16]} 16. Be3 {[%emt 0:11:25]} c5 {[%emt 0:17:00]} 17. dxc6 $1 {[%emt 0:00:16]} Nxc6 {[%emt 0:01:07]} 18. Bb6 {[%emt 0:00:09]} Qe7 {[%emt 0:01:25]} 19. Nc2 {[%emt 0:00:52]} fxe4 {[%emt 0:02:56]} 20. fxe4 {[%emt 0:01:39]} Be6 {[%emt 0:00:52]} 21. Nd5 {[%emt 0:06:11]} Bxd5 {[%emt 0:02:39]} 22. exd5 {[%emt 0:00:10]} Nd4 {[%emt 0:03:01]} 23. Nxd4 {[%emt 0:07:42]} exd4 {[%emt 0:00:05]} 24. Bxd4 {[%emt 0:00:07]} Ne4 {[%emt 0:03:52]} 25. Qd3 {[%emt 0:05:24]} Bxd4+ {[%emt 0:02:59]} 26. Qxd4 {[%emt 0:00:09]} Nc5 {[%emt 0:00:31]} 27. Bg4 {[%emt 0:05:38]} Rxf1+ {[%emt 0:07:56]} 28. Rxf1 {[%emt 0:00:08][%cal Og4e6]} Rf8 {[%emt 0:00:42]} 29. Be6+ {[%emt 0:05:45]} Nxe6 {[%emt 0:04:46]} 30. dxe6 {[%emt 0:00:06]} Qxe6 {[%emt 0:00:21]} 31. Rxf8+ {[%emt 0:03:05]} Kxf8 $11 {[%emt 0:00:01][%mdl 4096] Endgame KQ-KQ} 32. Kf2 {[%emt 0:00:19] Repels Qe1+} Qf5+ {[%emt 0:02:53]} 33. Ke3 {[%emt 0:01:00]} Qxa5 {[%emt 0:00:43]} 34. Qf6+ {[%emt 0:09:19]} Ke8 {[%emt 0:00:02]} 35. Qe6+ {[%emt 0:00:07]} Kf8 {[%emt 0:00:57] ( -> ...Qe1+)} 36. Qxd6+ {[%emt 0:04:49]} Kf7 {[%emt 0:00:49]} 37. Qf4+ {[%emt 0:00:10]} Ke6 {[%emt 0:02:33]} 38. Qxh6 {[%emt 0:00:40]} Qc3+ {[%emt 0:00:52]} 39. Kf2 {[%emt 0:00:08] And now Qe3+ would win.} Qc2+ {[%emt 0:00:12]} 40. Kf3 {[%emt 0:02:27]} Qd1+ {[%emt 0:00:06]} 41. Kg3 {[%emt 0:01:53]} Qd3+ {[%emt 0:00:06]} 42. Kh4 {[%emt 0:01:53]} Qxc4+ {[%emt 0:00:15]} 43. g4 {[%emt 0:00:04]} ({Don't blunder} 43. Kg5 $2 Qc1+ 44. Kxg6 Qxh6+ 45. Kxh6 b5 $19) 43... Qe4 {[%emt 0:01:35]} 44. Qf8 {[%emt 0:00:20]} Qe5 {[%emt 0:00:52] and ...Qf6+ would now be decisive} 45. Qe8+ {[%emt 0:03:16]} Kf6 {[%emt 0:00:10][%cal Re5h2]} 46. Qh8+ {[%emt 0:00:03]} Ke6 {[%emt 0:00:02]} 47. Qe8+ {[%emt 0:00:07]} Kf6 {[%emt 0:00:02][%cal Re5h2]} 48. Qh8+ {[%emt 0:00:06]} Ke6 {[%emt 0:00:01]} 1/2-1/2

[Event "15th Chennai GM Open 2025"]
[Site "Chennai"]
[Date "2025.01.05"]
[Round "6.3"]
[White "Kaustuv, Kundu"]
[Black "Das, Sayantan"]
[Result "1/2-1/2"]
[ECO "A17"]
[WhiteElo "2409"]
[BlackElo "2434"]
[Annotator "TA"]
[PlyCount "108"]
[EventDate "2025.01.02"]
[EventType "swiss"]
[EventCountry "IND"]
[SourceTitle "playchess.com"]
[Source "ChessBase"]
[SourceQuality "1"]
[TimeControl "5400+30"]

{[%evp 9,108,0,16,7,12,-28,-28,-42,0,0,0,0,0,-63,-63,-90,-12,-6,-9,-23,-29,-29,-38,-106,-41,-59,-59,-58,-43,-52,-46,-40,-41,-43,-48,-37,-41,-52,-22,-78,-47,-89,-67,-68,-62,-48,-50,-126,-85,-174,-175,-179,-171,-170,-21,-52,-42,-64,-54,-33,-37,-66,-67,-80,-81,-183,-130,-182,-99,-91,-64,-55,-45,-71,-26,-26,-26,-26,-26,-26,-15,-8,0,-8,-8,-59,-59,-59,-20,-20,-20,-29,0,-36,0,-51,-50,-50,-36,-59,-36]} 1. Nf3 {[%emt 0:03:07]} Nf6 {[%emt 0:00:33]} 2. c4 {[%emt 0:00:11]} e6 {[%emt 0:00:16]} 3. Nc3 {[%emt 0:00:53]} d5 {[%emt 0:01:04]} 4. e3 {[%emt 0:00:06]} Bd6 {[%emt 0:01:37]} 5. b3 {[%emt 0:00:17]} O-O {[%emt 0:04:37]} 6. Bb2 {[%emt 0:01:35]} a6 {[%emt 0:00:37]} 7. g4 {[%emt 0:10:39]} Nxg4 {[%emt 0:10:51]} 8. Rg1 {[%emt 0:08:19] Black has an edge.} f5 {[%emt 0:01:45]} 9. h3 {[%emt 0:04:25]} Nf6 {[%emt 0:00:39]} 10. cxd5 {[%emt 0:00:06]} e5 {[%emt 0:01:30]} 11. Qc2 {[%emt 0:04:52]} ({White should play} 11. Ng5 $11) 11... c6 $15 {[%emt 0:13:32]} 12. Rc1 {[%emt 0:15:40]} cxd5 {[%emt 0:15:27]} (12... Qe7 $17 13. dxc6 Nxc6) 13. Nxd5 $11 {[%emt 0:01:43]} Nc6 $1 {[%emt 0:01:28]} (13... Nxd5 $6 14. Bc4 Kh8 (14... Be6 15. Ng5 $16) 15. Bxd5 $16) 14. Bc4 {[%emt 0:04:40]} (14. Nxf6+ {looks sharper.} Qxf6 15. d4 f4 16. dxe5 Nxe5 17. Bxe5 Bxe5 18. Nxe5 Qxe5 19. Qc3) 14... Kh8 {[%emt 0:01:57]} 15. a3 {[%emt 0:02:31]} Bd7 {[%emt 0:01:56]} 16. Qb1 {[%emt 0:07:16] [#]} (16. Qd3 $15) 16... Rc8 {[%emt 0:13:34]} (16... e4 $1 $17 {[%cal Re4f3]} 17. Nh4 Be5) 17. Qa1 {[%emt 0:05:33]} b5 {[%emt 0:02:09]} 18. Nxf6 {[%emt 0:00:44]} gxf6 {[%emt 0:00:28]} (18... Qxf6 19. Bd5 f4 20. Be4 $14) 19. Be2 {[%emt 0:07:07]} Na5 {[%emt 0:03:30]} 20. Rxc8 {[%emt 0:01:17]} Bxc8 {[%emt 0:00:38]} 21. b4 {[%emt 0:00:56]} Nc4 {[%emt 0:02:43]} 22. Bc3 {[%emt 0:00:59]} Nb6 {[%emt 0:02:39]} 23. Qb1 {[%emt 0:08:56]} Be6 {[%emt 0:04:10]} 24. h4 {[%emt 0:02:42]} (24. Bd3 $11 {keeps the balance.}) 24... Qc7 {[%emt 0:01:35]} 25. Bd1 {[%emt 0:02:48]} Qf7 {[%emt 0:03:29]} 26. h5 {[%emt 0:01:03]} Rg8 {[%emt 0:02:50]} (26... Qxh5 $6 27. Nxe5 Qh6 28. Nf3 $14) 27. Rxg8+ {[%emt 0:01:24]} Qxg8 {[%emt 0:00:40]} 28. d3 {[%emt 0:01:52]} (28. Nh2 $15) 28... Qg2 {[%emt 0:02:21]} 29. Qc1 {[%emt 0:00:56]} (29. Qc2 $17) 29... Qh1+ $19 {[%emt 0:03:19]} 30. Kd2 {[%emt 0:00:28][%cal Oc3e5] [#] Black must now prevent Bxe5!} Qf1 {[%emt 0:00:52][%cal Ob6d5] aiming for ...Nd5!} (30... Qxh5 31. Nd4 Qf7 32. Nxe6 Qxe6 33. Qc2 $17) 31. Be2 {[%emt 0:01:06]} Qxc1+ {[%emt 0:01:29]} (31... Qxf2 $19 {...Nd5 would now be deadly.} 32. Qe1 Qxe1+ 33. Nxe1 Kg8) 32. Kxc1 $15 {[%emt 0:00:05]} Kg7 {[%emt 0:00:52]} 33. Nh4 {[%emt 0:01:23]} Nd5 {[%emt 0:00:27]} 34. Bd2 {[%emt 0:00:05][%cal Oh4f5]} Ne7 {[%emt 0:00:41]} 35. d4 {[%emt 0:01:20]} e4 {[%emt 0:00:43]} 36. a4 {[%emt 0:00:17]} Bd7 {[%emt 0:00:21]} 37. f3 {[%emt 0:00:35]} (37. axb5 $17 Bxb5 38. Bd1) 37... Kh6 {[%emt 0:00:37]} ({Black should try} 37... bxa4 $19 {Threatens to win with ...Bg3.} 38. fxe4 fxe4 39. Bxa6 Kh6) 38. f4 {[%emt 0:00:42]} (38. axb5 $17 Bxb5 (38... Kxh5 39. Nxf5 Bxf5 40. bxa6 $16) 39. Bd1) 38... Be8 {[%emt 0:00:49]} (38... bxa4 $19 {And now ...Nd5 would win.} 39. Bxa6 Kxh5) 39. axb5 $17 {[%emt 0:00:15]} axb5 {[%emt 0:00:30]} (39... Bxh5 $2 {loses.} 40. bxa6 Bb8 (40... Bxe2 $2 {is the wrong capture.} 41. a7 $18) 41. Bc4 $18) 40. Kb2 {[%emt 0:00:37]} Bd7 {[%emt 0:00:17]} 41. Kc2 {[%emt 0:00:32]} Kg7 {[%emt 0:00:29]} 42. Kb2 {[%emt 0:00:12]} Kf7 {[%emt 0:00:09]} 43. Kc2 {[%emt 0:00:29]} Nd5 {[%emt 0:00:39]} 44. Kb3 {[%emt 0:00:17]} Bf8 {[%emt 0:00:48]} 45. Bf1 {[%emt 0:00:16]} Bd6 {[%emt 0:00:28]} 46. Bh3 {[%emt 0:00:24]} Ne7 {[%emt 0:00:31]} 47. h6 {[%emt 0:01:06]} (47. d5 $11) 47... Ke6 $15 {[%emt 0:00:42]} 48. Bc3 {[%emt 0:00:05][%cal Od4d5]} Bc6 {[%emt 0:00:22]} 49. Kc2 {[%emt 0:00:57]} Bd5 {[%emt 0:00:26]} 50. Kd2 {[%emt 0:00:13]} Bc6 {[%emt 0:00:30]} 51. Kc2 {[%emt 0:00:11]} Bd5 {[%emt 0:00:33]} 52. Kd2 {[%emt 0:00:01]} Bb7 {[%emt 0:00:12] Black is slightly better.} 53. Kc2 {[%emt 0:00:40]} Bc6 {[%emt 0:00:04]} 54. Kd2 {[%emt 0:00:05]} Bd5 {[%emt 0:00:52] Weighted Error Value: White=0.19 (very precise) /Black=0.19 (very precise) .  Mistake:       	White=8     	Black=5      Inaccurate:     	White=6     	Black=6      OK:         	White=20    	Black=17     Best:        	White=2     	Black=2      Strong:       	---       	Black=1} 1/2-1/2